[Event "Titled Tuesday Blitz November 01 Early 2022"]
[White "Dominguez Perez, Leinier"]
[Black "Parpiev, Isaak"]
[WhiteFideId "3503240"]
[BlackFideId "34281576"]
[WhiteElo "2998"]
[BlackElo "2556"]
[Result "1-0"]
[Round "05"]
[TimeControl "180+1"]
[Date "2022.11.01"]
[WhiteClock "0:00:25"]
[BlackClock "0:00:01"]

1. e4 {[%clk 0:03:00]}  e5 {[%clk 0:02:59]} 2. Nf3 {[%clk 0:03:01]}  Nc6 {[%clk 0:02:57]} 3. Bb5 {[%clk 0:03:01]}  a6 {[%clk 0:02:56]} 4. Ba4 {[%clk 0:03:01]}  Nf6 {[%clk 0:02:56]} 5. O-O {[%clk 0:03:02]}  Be7 {[%clk 0:02:56]} 6. Re1 {[%clk 0:03:00]}  b5 {[%clk 0:02:57]} 7. Bb3 {[%clk 0:03:01]}  O-O {[%clk 0:02:57]} 8. a4 {[%clk 0:03:01]}  Bb7 {[%clk 0:02:57]} 9. d3 {[%clk 0:03:00]}  Re8 {[%clk 0:02:51]} 10. Nc3 {[%clk 0:02:55]}  b4 {[%clk 0:02:34]} 11. Nd5 {[%clk 0:02:50]}  Na5 {[%clk 0:02:17]} 12. Nxe7+ {[%clk 0:02:45]}  Qxe7 {[%clk 0:02:16]} 13. Ba2 {[%clk 0:02:44]}  b3 {[%clk 0:02:15]} 14. Bd2 {[%clk 0:02:06]}  bxc2 {[%clk 0:01:21]} 15. Qxc2 {[%clk 0:02:05]}  Nc6 {[%clk 0:01:22]} 16. b4 {[%clk 0:02:06]}  Rac8 {[%clk 0:00:44]} 17. Rac1 {[%clk 0:02:03]}  d6 {[%clk 0:00:40]} 18. Bc4 {[%clk 0:01:53]}  h6 {[%clk 0:00:33]} 19. Qb3 {[%clk 0:01:45]}  Nd8 {[%clk 0:00:27]} 20. Nh4 {[%clk 0:01:44]}  Ne6 {[%clk 0:00:23]} 21. Nf5 {[%clk 0:01:44]}  Qf8 {[%clk 0:00:20]} 22. Be3 {[%clk 0:01:31]}  Kh7 {[%clk 0:00:19]} 23. Rc2 {[%clk 0:01:26]}  Ng4 {[%clk 0:00:19]} 24. Rec1 {[%clk 0:01:17]}  Nxe3 {[%clk 0:00:14]} 25. fxe3 {[%clk 0:01:17]}  c5 {[%clk 0:00:12]} 26. Bd5 {[%clk 0:01:12]}  Bxd5 {[%clk 0:00:06]} 27. exd5 {[%clk 0:01:12]}  Ng5 {[%clk 0:00:03]} 28. h4 {[%clk 0:01:05]}  g6 {[%clk 0:00:02]} 29. Ng3 {[%clk 0:01:05]}  Nh3+ {[%clk 0:00:01]} 30. gxh3 {[%clk 0:01:05]}  Qe7 {[%clk 0:00:02]} 31. Rc4 {[%clk 0:01:03]}  Rb8 {[%clk 0:00:01]} 32. Rf1 {[%clk 0:00:59]}  cxb4 {[%clk 0:00:01]} 33. Rxb4 {[%clk 0:00:59]}  Rxb4 {[%clk 0:00:01]} 34. Qxb4 {[%clk 0:01:00]}  a5 {[%clk 0:00:01]} 35. Qe4 {[%clk 0:00:57]}  f5 {[%clk 0:00:01]} 36. Qc4 {[%clk 0:00:54]}  Rf8 {[%clk 0:00:02]} 37. Ne2 {[%clk 0:00:48]}  h5 {[%clk 0:00:01]} 38. Rc1 {[%clk 0:00:46]}  Kh6 {[%clk 0:00:01]} 39. Kg2 {[%clk 0:00:40]}  Rb8 {[%clk 0:00:01]} 40. Qc7 {[%clk 0:00:30]}  Qf8 {[%clk 0:00:01]} 41. Qd7 {[%clk 0:00:26]}  e4 {[%clk 0:00:01]} 42. Rc7 {[%clk 0:00:25]} 1-0


[Site "https://www.chess.com"]

[Event "Titled Tuesday Blitz November 01 Early 2022"]
[White "Donchenko, Alexander"]
[Black "Al-Tarboush, Ward"]
[WhiteFideId "24603295"]
[BlackFideId "7601450"]
[WhiteElo "2572"]
[BlackElo "2269"]
[Result "1-0"]
[Round "05"]
[TimeControl "180+1"]
[Date "2022.11.02"]
[WhiteClock "0:00:10"]
[BlackClock "0:00:02"]

1. Nf3 {[%clk 0:02:57]}  b6 {[%clk 0:02:59]} 2. e4 {[%clk 0:02:56]}  Bb7 {[%clk 0:02:58]} 3. Nc3 {[%clk 0:02:57]}  e6 {[%clk 0:02:57]} 4. d4 {[%clk 0:02:57]}  Bb4 {[%clk 0:02:57]} 5. Bd3 {[%clk 0:02:56]}  Nf6 {[%clk 0:02:56]} 6. Nd2 {[%clk 0:02:56]}  c5 {[%clk 0:02:48]} 7. a3 {[%clk 0:02:54]}  Bxc3 {[%clk 0:02:44]} 8. bxc3 {[%clk 0:02:55]}  Nc6 {[%clk 0:02:41]} 9. Bb2 {[%clk 0:02:50]}  d6 {[%clk 0:02:36]} 10. O-O {[%clk 0:02:49]}  Qc7 {[%clk 0:02:36]} 11. a4 {[%clk 0:02:43]}  O-O {[%clk 0:02:35]} 12. Qe2 {[%clk 0:02:41]}  cxd4 {[%clk 0:02:34]} 13. cxd4 {[%clk 0:02:41]}  Nb4 {[%clk 0:02:34]} 14. Ba3 {[%clk 0:02:36]}  Nxd3 {[%clk 0:02:32]} 15. cxd3 {[%clk 0:02:36]}  Rfd8 {[%clk 0:02:28]} 16. Rfc1 {[%clk 0:02:34]}  Qd7 {[%clk 0:02:28]} 17. Nc4 {[%clk 0:02:32]}  Ne8 {[%clk 0:02:24]} 18. Bb4 {[%clk 0:02:24]}  Rac8 {[%clk 0:02:22]} 19. h4 {[%clk 0:02:16]}  h6 {[%clk 0:02:07]} 20. a5 {[%clk 0:02:07]}  b5 {[%clk 0:02:02]} 21. Ne3 {[%clk 0:02:03]}  a6 {[%clk 0:01:57]} 22. h5 {[%clk 0:01:58]}  Rxc1+ {[%clk 0:01:57]} 23. Rxc1 {[%clk 0:01:57]}  Rc8 {[%clk 0:01:57]} 24. Rf1 {[%clk 0:01:56]}  Qc6 {[%clk 0:01:54]} 25. f4 {[%clk 0:01:49]}  Nf6 {[%clk 0:01:49]} 26. f5 {[%clk 0:01:45]}  Qd7 {[%clk 0:01:03]} 27. fxe6 {[%clk 0:01:42]}  fxe6 {[%clk 0:01:02]} 28. Qf2 {[%clk 0:01:37]}  Rf8 {[%clk 0:00:58]} 29. Qh4 {[%clk 0:01:28]}  Nh7 {[%clk 0:00:56]} 30. Rxf8+ {[%clk 0:01:27]}  Nxf8 {[%clk 0:00:57]} 31. Qf4 {[%clk 0:01:25]}  Nh7 {[%clk 0:00:53]} 32. Bxd6 {[%clk 0:01:19]}  Nf6 {[%clk 0:00:53]} 33. g4 {[%clk 0:01:19]}  e5 {[%clk 0:00:53]} 34. Bxe5 {[%clk 0:01:17]}  Ne8 {[%clk 0:00:48]} 35. d5 {[%clk 0:01:15]}  Qc8 {[%clk 0:00:45]} 36. Nf5 {[%clk 0:01:12]}  Qc5+ {[%clk 0:00:45]} 37. Bd4 {[%clk 0:01:11]}  Qb4 {[%clk 0:00:45]} 38. Qe5 {[%clk 0:01:08]}  Qe1+ {[%clk 0:00:44]} 39. Kg2 {[%clk 0:01:09]}  Qe2+ {[%clk 0:00:44]} 40. Kg3 {[%clk 0:01:07]}  Nf6 {[%clk 0:00:43]} 41. Qb8+ {[%clk 0:01:05]}  Kh7 {[%clk 0:00:43]} 42. Bxf6 {[%clk 0:01:01]}  Qe1+ {[%clk 0:00:43]} 43. Kf3 {[%clk 0:00:57]}  Qf1+ {[%clk 0:00:32]} 44. Ke3 {[%clk 0:00:57]}  Qc1+ {[%clk 0:00:32]} 45. Kd4 {[%clk 0:00:54]}  Qb2+ {[%clk 0:00:31]} 46. Kc5 {[%clk 0:00:54]}  Qxf6 {[%clk 0:00:19]} 47. Qxb7 {[%clk 0:00:52]}  b4 {[%clk 0:00:16]} 48. Nxg7 {[%clk 0:00:42]}  Qc3+ {[%clk 0:00:12]} 49. Kd6 {[%clk 0:00:39]}  Qxg7 {[%clk 0:00:11]} 50. Qb8 {[%clk 0:00:24]}  Qf6+ {[%clk 0:00:09]} 51. Kc5 {[%clk 0:00:23]}  Qc3+ {[%clk 0:00:09]} 52. Kb6 {[%clk 0:00:22]}  b3 {[%clk 0:00:10]} 53. Ka7 {[%clk 0:00:11]}  b2 {[%clk 0:00:08]} 54. d6 {[%clk 0:00:11]}  Qd4+ {[%clk 0:00:07]} 55. Ka8 {[%clk 0:00:11]}  Qxd3 {[%clk 0:00:03]} 56. Qc7+ {[%clk 0:00:11]}  Kg8 {[%clk 0:00:02]} 57. Qb8+ {[%clk 0:00:10]}  Kf7 {[%clk 0:00:03]} 58. Qxb2 {[%clk 0:00:11]}  Qxe4+ {[%clk 0:00:02]} 59. Qb7+ {[%clk 0:00:10]} 1-0


[Site "https://www.chess.com"]

[Event "Titled Tuesday Blitz November 01 Early 2022"]
[White "Fernandez Siles, Luis"]
[Black "Yeritsyan, Hayk"]
[WhiteFideId "2209420"]
[BlackFideId "13307320"]
[WhiteElo "2186"]
[BlackElo "2390"]
[Result "0-1"]
[Round "05"]
[TimeControl "180+1"]
[Date "2022.11.02"]
[WhiteClock "0:00:10"]
[BlackClock "0:00:10"]

1. d4 {[%clk 0:03:00]}  d5 {[%clk 0:02:09]} 2. c4 {[%clk 0:02:59]}  c6 {[%clk 0:02:08]} 3. Nc3 {[%clk 0:02:59]}  Nf6 {[%clk 0:02:08]} 4. cxd5 {[%clk 0:02:59]}  cxd5 {[%clk 0:02:08]} 5. Bf4 {[%clk 0:02:59]}  e6 {[%clk 0:02:01]} 6. e3 {[%clk 0:02:57]}  Bd6 {[%clk 0:01:50]} 7. Bxd6 {[%clk 0:02:56]}  Qxd6 {[%clk 0:01:51]} 8. f4 {[%clk 0:02:56]}  O-O {[%clk 0:01:49]} 9. Nf3 {[%clk 0:02:56]}  Nc6 {[%clk 0:01:45]} 10. Bd3 {[%clk 0:02:56]}  Ne7 {[%clk 0:01:43]} 11. O-O {[%clk 0:02:54]}  Bd7 {[%clk 0:01:43]} 12. Ne5 {[%clk 0:02:54]}  Rac8 {[%clk 0:01:40]} 13. Rf3 {[%clk 0:02:36]}  Bc6 {[%clk 0:00:50]} 14. Rh3 {[%clk 0:02:31]}  Ne4 {[%clk 0:00:47]} 15. Qh5 {[%clk 0:02:20]}  h6 {[%clk 0:00:44]} 16. g4 {[%clk 0:01:58]}  f6 {[%clk 0:00:40]} 17. Bxe4 {[%clk 0:01:36]}  dxe4 {[%clk 0:00:29]} 18. Ng6 {[%clk 0:01:02]}  Nxg6 {[%clk 0:00:27]} 19. Qxg6 {[%clk 0:01:02]}  Kh8 {[%clk 0:00:10]} 20. g5 {[%clk 0:00:53]}  fxg5 {[%clk 0:00:09]} 21. fxg5 {[%clk 0:00:49]}  Be8 {[%clk 0:00:09]} 22. Qxe4 {[%clk 0:00:49]}  Bc6 {[%clk 0:00:09]} 23. Qh4 {[%clk 0:00:40]}  Rf5 {[%clk 0:00:08]} 24. gxh6 {[%clk 0:00:34]}  g6 {[%clk 0:00:08]} 25. d5 {[%clk 0:00:27]}  Bxd5 {[%clk 0:00:06]} 26. e4 {[%clk 0:00:26]}  Qc5+ {[%clk 0:00:06]} 27. Kh1 {[%clk 0:00:22]}  Bc6 {[%clk 0:00:06]} 28. Re1 {[%clk 0:00:13]}  Rcf8 {[%clk 0:00:05]} 29. Qg3 {[%clk 0:00:13]}  Rg5 {[%clk 0:00:05]} 30. Qd3 {[%clk 0:00:11]}  Qe5 {[%clk 0:00:04]} 31. Rg3 {[%clk 0:00:11]}  Rxg3 {[%clk 0:00:04]} 32. hxg3 {[%clk 0:00:11]}  Qh5+ {[%clk 0:00:03]} 33. Kg2 {[%clk 0:00:11]}  Qg5 {[%clk 0:00:03]} 34. Rf1 {[%clk 0:00:11]}  Rxf1 {[%clk 0:00:03]} 35. Qxf1 {[%clk 0:00:12]}  Qxh6 {[%clk 0:00:03]} 36. Qf6+ {[%clk 0:00:12]}  Qg7 {[%clk 0:00:03]} 37. Qxe6 {[%clk 0:00:13]}  Kh7 {[%clk 0:00:04]} 38. Qh3+ {[%clk 0:00:13]}  Qh6 {[%clk 0:00:04]} 39. Qxh6+ {[%clk 0:00:13]}  Kxh6 {[%clk 0:00:05]} 40. Kf3 {[%clk 0:00:13]}  Kg5 {[%clk 0:00:05]} 41. Nd5 {[%clk 0:00:13]}  Bxd5 {[%clk 0:00:04]} 42. exd5 {[%clk 0:00:13]}  Kf5 {[%clk 0:00:04]} 43. b3 {[%clk 0:00:12]}  Ke5 {[%clk 0:00:04]} 44. Kg4 {[%clk 0:00:12]}  Kxd5 {[%clk 0:00:03]} 45. Kg5 {[%clk 0:00:12]}  Ke4 {[%clk 0:00:04]} 46. g4 {[%clk 0:00:12]}  Kf3 {[%clk 0:00:04]} 47. a4 {[%clk 0:00:12]}  a5 {[%clk 0:00:05]} 48. Kxg6 {[%clk 0:00:11]}  Kxg4 {[%clk 0:00:05]} 49. Kf6 {[%clk 0:00:11]}  Kf4 {[%clk 0:00:06]} 50. Ke6 {[%clk 0:00:12]}  Ke4 {[%clk 0:00:06]} 51. Kd6 {[%clk 0:00:13]}  Kd4 {[%clk 0:00:07]} 52. Kc7 {[%clk 0:00:12]}  Kc3 {[%clk 0:00:08]} 53. Kb6 {[%clk 0:00:11]}  Kb4 {[%clk 0:00:07]} 54. Kxb7 {[%clk 0:00:11]}  Kxb3 {[%clk 0:00:07]} 55. Kc6 {[%clk 0:00:11]}  Kxa4 {[%clk 0:00:08]} 56. Kc5 {[%clk 0:00:11]}  Kb3 {[%clk 0:00:09]} 57. Kd4 {[%clk 0:00:10]}  a4 {[%clk 0:00:09]} 58. Ke3 {[%clk 0:00:10]}  a3 {[%clk 0:00:10]} 0-1


[Site "https://www.chess.com"]

[Event "Titled Tuesday Blitz November 01 Early 2022"]
[White "Gabrielian, Artur"]
[Black "Gubajdullin, Alexei"]
[WhiteFideId "4131002"]
[BlackFideId "4141202"]
[WhiteElo "2432"]
[BlackElo "2200"]
[Result "0-1"]
[Round "05"]
[TimeControl "180+1"]
[Date "2022.11.02"]
[WhiteClock "0:00:13"]
[BlackClock "0:00:04"]

1. e4 {[%clk 0:03:00]}  g6 {[%clk 0:02:59]} 2. d4 {[%clk 0:03:00]}  Bg7 {[%clk 0:03:00]} 3. Nc3 {[%clk 0:03:01]}  d6 {[%clk 0:03:00]} 4. Be3 {[%clk 0:03:01]}  c6 {[%clk 0:02:59]} 5. Qd2 {[%clk 0:03:00]}  b5 {[%clk 0:02:58]} 6. Nf3 {[%clk 0:02:58]}  Nd7 {[%clk 0:02:55]} 7. Bd3 {[%clk 0:02:56]}  Qc7 {[%clk 0:02:49]} 8. O-O {[%clk 0:02:56]}  Ngf6 {[%clk 0:02:48]} 9. Bh6 {[%clk 0:02:56]}  O-O {[%clk 0:02:46]} 10. Bxg7 {[%clk 0:02:56]}  Kxg7 {[%clk 0:02:46]} 11. a4 {[%clk 0:02:56]}  b4 {[%clk 0:02:43]} 12. Ne2 {[%clk 0:02:56]}  a5 {[%clk 0:02:43]} 13. Ng3 {[%clk 0:02:55]}  h6 {[%clk 0:02:35]} 14. Rfe1 {[%clk 0:02:55]}  e5 {[%clk 0:02:35]} 15. c3 {[%clk 0:02:54]}  c5 {[%clk 0:02:15]} 16. d5 {[%clk 0:02:51]}  c4 {[%clk 0:02:07]} 17. Bf1 {[%clk 0:02:50]}  Ba6 {[%clk 0:01:56]} 18. Nh4 {[%clk 0:02:40]}  Kh7 {[%clk 0:01:49]} 19. f4 {[%clk 0:02:34]}  Qc5+ {[%clk 0:01:28]} 20. Kh1 {[%clk 0:02:34]}  Ng4 {[%clk 0:01:28]} 21. Re2 {[%clk 0:02:32]}  bxc3 {[%clk 0:01:24]} 22. bxc3 {[%clk 0:02:31]}  exf4 {[%clk 0:01:06]} 23. Qxf4 {[%clk 0:02:31]}  Nde5 {[%clk 0:01:06]} 24. h3 {[%clk 0:02:25]}  f5 {[%clk 0:00:32]} 25. hxg4 {[%clk 0:02:00]}  g5 {[%clk 0:00:26]} 26. Qd2 {[%clk 0:01:57]}  gxh4 {[%clk 0:00:17]} 27. Nxf5 {[%clk 0:01:57]}  Nxg4 {[%clk 0:00:17]} 28. Qf4 {[%clk 0:01:52]}  Rg8 {[%clk 0:00:17]} 29. Re3 {[%clk 0:01:39]}  Raf8 {[%clk 0:00:13]} 30. Rf3 {[%clk 0:01:38]}  Bc8 {[%clk 0:00:13]} 31. Rb1 {[%clk 0:01:36]}  Bxf5 {[%clk 0:00:13]} 32. exf5 {[%clk 0:01:36]}  Rf7 {[%clk 0:00:12]} 33. Rb5 {[%clk 0:01:21]}  Qa7 {[%clk 0:00:11]} 34. f6 {[%clk 0:01:14]}  h3 {[%clk 0:00:10]} 35. g3 {[%clk 0:00:46]}  Ne5 {[%clk 0:00:10]} 36. Qe4+ {[%clk 0:00:40]}  Kh8 {[%clk 0:00:09]} 37. Re3 {[%clk 0:00:27]}  Rxf6 {[%clk 0:00:08]} 38. Bxh3 {[%clk 0:00:28]}  Rgf8 {[%clk 0:00:08]} 39. Bg2 {[%clk 0:00:24]}  Qg7 {[%clk 0:00:07]} 40. Rb1 {[%clk 0:00:17]}  Ng4 {[%clk 0:00:07]} 41. Rf3 {[%clk 0:00:18]}  Rxf3 {[%clk 0:00:05]} 42. Kg1 {[%clk 0:00:16]}  Nf2 {[%clk 0:00:04]} 43. Qe6 {[%clk 0:00:13]}  Rxg3 {[%clk 0:00:04]} 0-1


[Site "https://www.chess.com"]

[Event "Titled Tuesday Blitz November 01 Early 2022"]
[White "Gulevich, Artem"]
[Black "Aung Thant Zin"]
[WhiteFideId "24119580"]
[BlackFideId "13000063"]
[WhiteElo "2218"]
[BlackElo "2278"]
[Result "1/2-1/2"]
[Round "05"]
[TimeControl "180+1"]
[Date "2022.11.02"]
[WhiteClock "0:01:20"]
[BlackClock "0:00:12"]

1. Nf3 {[%clk 0:03:00]}  d5 {[%clk 0:02:59]} 2. b3 {[%clk 0:03:00]}  e6 {[%clk 0:02:58]} 3. Bb2 {[%clk 0:03:01]}  Nf6 {[%clk 0:02:59]} 4. e3 {[%clk 0:03:01]}  Be7 {[%clk 0:02:59]} 5. Be2 {[%clk 0:03:02]}  O-O {[%clk 0:03:00]} 6. O-O {[%clk 0:03:02]}  c5 {[%clk 0:03:00]} 7. d4 {[%clk 0:03:03]}  Nc6 {[%clk 0:03:00]} 8. Nbd2 {[%clk 0:03:02]}  b6 {[%clk 0:03:00]} 9. c4 {[%clk 0:03:02]}  Bb7 {[%clk 0:03:00]} 10. Rc1 {[%clk 0:03:02]}  Rc8 {[%clk 0:02:56]} 11. dxc5 {[%clk 0:03:03]}  Bxc5 {[%clk 0:02:55]} 12. Qc2 {[%clk 0:03:03]}  h6 {[%clk 0:02:50]} 13. Qb1 {[%clk 0:03:02]}  Qe7 {[%clk 0:02:32]} 14. Rfd1 {[%clk 0:03:02]}  Rfd8 {[%clk 0:02:28]} 15. Qa1 {[%clk 0:03:00]}  Ba3 {[%clk 0:02:21]} 16. cxd5 {[%clk 0:02:56]}  Bxb2 {[%clk 0:02:13]} 17. Qxb2 {[%clk 0:02:52]}  Nxd5 {[%clk 0:02:14]} 18. Nc4 {[%clk 0:02:47]}  b5 {[%clk 0:01:50]} 19. Nce5 {[%clk 0:02:38]}  Nxe5 {[%clk 0:01:49]} 20. Nxe5 {[%clk 0:02:37]}  b4 {[%clk 0:01:45]} 21. Bf3 {[%clk 0:02:30]}  Nc3 {[%clk 0:01:41]} 22. Rxd8+ {[%clk 0:02:30]}  Rxd8 {[%clk 0:01:41]} 23. a3 {[%clk 0:02:21]}  a5 {[%clk 0:01:39]} 24. Bxb7 {[%clk 0:02:20]}  Qxb7 {[%clk 0:01:38]} 25. Nc4 {[%clk 0:02:21]}  Qd5 {[%clk 0:01:15]} 26. g3 {[%clk 0:02:07]}  Qd3 {[%clk 0:01:01]} 27. Rc2 {[%clk 0:01:52]}  Qd1+ {[%clk 0:00:44]} 28. Kg2 {[%clk 0:01:52]}  Qh5 {[%clk 0:00:33]} 29. Rxc3 {[%clk 0:01:45]}  bxc3 {[%clk 0:00:32]} 30. Qxc3 {[%clk 0:01:46]}  a4 {[%clk 0:00:29]} 31. bxa4 {[%clk 0:01:46]}  Rc8 {[%clk 0:00:29]} 32. Qd4 {[%clk 0:01:40]}  Qd5+ {[%clk 0:00:28]} 33. Qxd5 {[%clk 0:01:40]}  exd5 {[%clk 0:00:29]} 34. Nb6 {[%clk 0:01:40]}  Rc5 {[%clk 0:00:27]} 35. Kf3 {[%clk 0:01:37]}  f6 {[%clk 0:00:27]} 36. Ke2 {[%clk 0:01:37]}  Kf7 {[%clk 0:00:27]} 37. Kd3 {[%clk 0:01:36]}  Ke7 {[%clk 0:00:26]} 38. Kd4 {[%clk 0:01:37]}  Kd6 {[%clk 0:00:26]} 39. Kd3 {[%clk 0:01:31]}  Ra5 {[%clk 0:00:24]} 40. Kc3 {[%clk 0:01:27]}  Kc6 {[%clk 0:00:24]} 41. Nc8 {[%clk 0:01:27]}  Rxa4 {[%clk 0:00:23]} 42. Ne7+ {[%clk 0:01:25]}  Kd6 {[%clk 0:00:22]} 43. Nf5+ {[%clk 0:01:26]}  Ke5 {[%clk 0:00:22]} 44. Kb3 {[%clk 0:01:25]}  Ra7 {[%clk 0:00:21]} 45. g4 {[%clk 0:01:25]}  h5 {[%clk 0:00:15]} 46. h3 {[%clk 0:01:25]}  hxg4 {[%clk 0:00:15]} 47. hxg4 {[%clk 0:01:26]}  g6 {[%clk 0:00:15]} 48. Nd4 {[%clk 0:01:25]}  Ke4 {[%clk 0:00:15]} 49. a4 {[%clk 0:01:20]}  Kd3 {[%clk 0:00:14]} 50. Kb4 {[%clk 0:01:20]}  Ke4 {[%clk 0:00:13]} 51. a5 {[%clk 0:01:20]}  f5 {[%clk 0:00:13]} 52. gxf5 {[%clk 0:01:20]}  gxf5 {[%clk 0:00:13]} 53. Nc6 {[%clk 0:01:20]}  Ra8 {[%clk 0:00:12]} 54. Kb5 {[%clk 0:01:19]}  f4 {[%clk 0:00:13]} 55. exf4 {[%clk 0:01:19]}  Kxf4 {[%clk 0:00:13]} 56. Kc5 {[%clk 0:01:20]}  Kf3 {[%clk 0:00:13]} 57. Kxd5 {[%clk 0:01:20]}  Kxf2 {[%clk 0:00:13]} 58. Kc5 {[%clk 0:01:20]}  Rxa5+ {[%clk 0:00:12]} 59. Nxa5 {[%clk 0:01:20]} 1/2-1/2


[Site "https://www.chess.com"]

[Event "Titled Tuesday Blitz November 01 Early 2022"]
[White "Harsh Suresh"]
[Black "Bortnyk, Olexandr"]
[WhiteFideId "45018464"]
[BlackFideId "14120828"]
[WhiteElo "2180"]
[BlackElo "2723"]
[Result "0-1"]
[Round "05"]
[TimeControl "180+1"]
[Date "2022.11.01"]
[WhiteClock "0:00:22"]
[BlackClock "0:01:25"]

1. d4 {[%clk 0:03:00]}  d6 {[%clk 0:03:00]} 2. Nf3 {[%clk 0:03:00]}  g6 {[%clk 0:03:00]} 3. c4 {[%clk 0:02:55]}  Bg7 {[%clk 0:03:01]} 4. Nc3 {[%clk 0:02:55]}  Nc6 {[%clk 0:03:01]} 5. g3 {[%clk 0:02:54]}  Bd7 {[%clk 0:03:01]} 6. Bg2 {[%clk 0:02:54]}  Qc8 {[%clk 0:03:01]} 7. Be3 {[%clk 0:02:46]}  h5 {[%clk 0:02:58]} 8. h4 {[%clk 0:02:45]}  Nh6 {[%clk 0:02:58]} 9. d5 {[%clk 0:02:32]}  Ne5 {[%clk 0:02:56]} 10. Nxe5 {[%clk 0:02:31]}  Bxe5 {[%clk 0:02:57]} 11. Bxh6 {[%clk 0:02:30]}  Rxh6 {[%clk 0:02:56]} 12. Qd2 {[%clk 0:02:27]}  Rh8 {[%clk 0:02:56]} 13. O-O-O {[%clk 0:02:23]}  c5 {[%clk 0:02:56]} 14. f4 {[%clk 0:02:22]}  Bg7 {[%clk 0:02:56]} 15. e4 {[%clk 0:02:22]}  Qc7 {[%clk 0:02:57]} 16. Bh3 {[%clk 0:02:14]}  Bxh3 {[%clk 0:02:56]} 17. Rxh3 {[%clk 0:02:15]}  Qa5 {[%clk 0:02:56]} 18. Kb1 {[%clk 0:02:12]}  Qb4 {[%clk 0:02:55]} 19. Qd3 {[%clk 0:02:09]}  a6 {[%clk 0:02:53]} 20. e5 {[%clk 0:01:44]}  dxe5 {[%clk 0:02:52]} 21. d6 {[%clk 0:01:44]}  e4 {[%clk 0:02:20]} 22. Qxe4 {[%clk 0:01:41]}  O-O-O {[%clk 0:02:19]} 23. d7+ {[%clk 0:01:16]}  Rxd7 {[%clk 0:02:10]} 24. Rxd7 {[%clk 0:01:17]}  Kxd7 {[%clk 0:02:11]} 25. g4 {[%clk 0:01:16]}  e6 {[%clk 0:01:50]} 26. Rd3+ {[%clk 0:01:09]}  Kc8 {[%clk 0:01:50]} 27. f5 {[%clk 0:01:06]}  gxf5 {[%clk 0:01:28]} 28. gxf5 {[%clk 0:01:06]}  Re8 {[%clk 0:01:28]} 29. fxe6 {[%clk 0:00:25]}  Rxe6 {[%clk 0:01:28]} 30. Qf5 {[%clk 0:00:24]}  Qxc4 {[%clk 0:01:26]} 31. Rd1 {[%clk 0:00:17]}  Bxc3 {[%clk 0:01:22]} 32. Qxf7 {[%clk 0:00:17]}  Qe4+ {[%clk 0:01:13]} 33. Ka1 {[%clk 0:00:17]}  Bd4 {[%clk 0:01:14]} 34. Qxh5 {[%clk 0:00:13]}  Qe2 {[%clk 0:01:12]} 35. Qxe2 {[%clk 0:00:12]}  Rxe2 {[%clk 0:01:13]} 36. Rb1 {[%clk 0:00:11]}  Rh2 {[%clk 0:01:13]} 37. a3 {[%clk 0:00:12]}  Rxh4 {[%clk 0:01:13]} 38. Ka2 {[%clk 0:00:13]}  Rh2 {[%clk 0:01:13]} 39. Kb3 {[%clk 0:00:13]}  b5 {[%clk 0:01:14]} 40. a4 {[%clk 0:00:13]}  Kb7 {[%clk 0:01:13]} 41. axb5 {[%clk 0:00:13]}  axb5 {[%clk 0:01:14]} 42. Ka3 {[%clk 0:00:14]}  Rxb2 {[%clk 0:01:14]} 43. Rxb2 {[%clk 0:00:14]}  Bxb2+ {[%clk 0:01:15]} 44. Kxb2 {[%clk 0:00:14]}  Kc6 {[%clk 0:01:15]} 45. Kc2 {[%clk 0:00:15]}  Kd5 {[%clk 0:01:16]} 46. Kd3 {[%clk 0:00:16]}  b4 {[%clk 0:01:16]} 47. Kd2 {[%clk 0:00:17]}  c4 {[%clk 0:01:17]} 48. Kc2 {[%clk 0:00:18]}  Kd4 {[%clk 0:01:18]} 49. Kb2 {[%clk 0:00:19]}  b3 {[%clk 0:01:18]} 50. Ka3 {[%clk 0:00:17]}  Kc3 {[%clk 0:01:19]} 51. Ka4 {[%clk 0:00:18]}  b2 {[%clk 0:01:19]} 52. Kb5 {[%clk 0:00:18]}  b1=Q+ {[%clk 0:01:20]} 53. Kc5 {[%clk 0:00:19]}  Qf5+ {[%clk 0:01:20]} 54. Kd6 {[%clk 0:00:20]}  Kd4 {[%clk 0:01:21]} 55. Ke7 {[%clk 0:00:20]}  c3 {[%clk 0:01:22]} 56. Kd6 {[%clk 0:00:21]}  c2 {[%clk 0:01:23]} 57. Ke7 {[%clk 0:00:21]}  c1=Q {[%clk 0:01:24]} 58. Kd6 {[%clk 0:00:22]}  Qcc5# {[%clk 0:01:25]} 0-1


[Site "https://www.chess.com"]

[Event "Titled Tuesday Blitz November 01 Early 2022"]
[White "Hoffmann, Asa"]
[Black "Blokhin, Sofia"]
[WhiteFideId "2001470"]
[BlackFideId "4508190"]
[WhiteElo "2117"]
[BlackElo "2005"]
[Result "1-0"]
[Round "05"]
[TimeControl "180+1"]
[Date "2022.11.02"]
[WhiteClock "0:01:19"]
[BlackClock "0:00:09"]

1. d4 {[%clk 0:02:57]}  f5 {[%clk 0:02:58]} 2. Nc3 {[%clk 0:02:56]}  e6 {[%clk 0:02:58]} 3. f3 {[%clk 0:02:52]}  Nf6 {[%clk 0:02:55]} 4. e4 {[%clk 0:02:51]}  fxe4 {[%clk 0:02:53]} 5. fxe4 {[%clk 0:02:51]}  Bb4 {[%clk 0:02:53]} 6. e5 {[%clk 0:02:49]}  Nd5 {[%clk 0:02:48]} 7. Qg4 {[%clk 0:02:48]}  O-O {[%clk 0:02:36]} 8. Bd2 {[%clk 0:02:45]}  Nxc3 {[%clk 0:02:20]} 9. bxc3 {[%clk 0:02:45]}  Be7 {[%clk 0:02:15]} 10. Nf3 {[%clk 0:02:44]}  c5 {[%clk 0:02:04]} 11. Bd3 {[%clk 0:02:44]}  Rf7 {[%clk 0:01:33]} 12. O-O {[%clk 0:02:41]}  Nc6 {[%clk 0:01:32]} 13. Ng5 {[%clk 0:02:40]}  Rxf1+ {[%clk 0:01:22]} 14. Rxf1 {[%clk 0:02:38]}  Bxg5 {[%clk 0:01:17]} 15. Bxg5 {[%clk 0:02:32]}  Qe8 {[%clk 0:01:16]} 16. Bh6 {[%clk 0:02:12]}  Qe7 {[%clk 0:01:06]} 17. Rf3 {[%clk 0:01:50]}  Kh8 {[%clk 0:00:45]} 18. Bg5 {[%clk 0:01:49]}  Qe8 {[%clk 0:00:42]} 19. Qh4 {[%clk 0:01:45]}  g6 {[%clk 0:00:29]} 20. Qh6 {[%clk 0:01:33]}  Kg8 {[%clk 0:00:25]} 21. Bxg6 {[%clk 0:01:21]}  hxg6 {[%clk 0:00:22]} 22. Bf6 {[%clk 0:01:21]}  Qf8 {[%clk 0:00:09]} 23. Qxg6+ {[%clk 0:01:19]} 1-0


[Site "https://www.chess.com"]